lending/lending_fUSD_20250424
["ID","MTS","AMOUNT","RATE_DAILY","PERIOD"]
[358838207,1745488327196,-1017.42,0.00027031,2]
[358838208,1745488327206,-1000.0,0.00027113,2]
[358838209,1745488327216,-1000.0,0.00027113,2]
[358838210,1745488327226,-3547.25,0.00027123,2]
[358838211,1745488327236,-1000.0,0.00027159,2]
[358838212,1745488327246,-1000.0,0.00027222,2]
[358838213,1745488327255,-190.45,0.00027397,2]
[358838214,1745488327266,-500.0,0.00027397,2]
[358838215,1745488327276,-629.98508827,0.00027397,2]
[358838216,1745488327286,-500.0,0.00027397,2]
[358838217,1745488327296,-700.0,0.00027397,2]
[358838218,1745488327306,-700.0,0.00027397,2]
[358838219,1745488327316,-700.0,0.00027397,2]
[358838220,1745488327326,-700.0,0.00027397,2]
[358838221,1745488327335,-700.0,0.00027397,2]
[358838222,1745488327346,-700.0,0.00027397,2]
[358838223,1745488327355,-700.0,0.00027397,2]
[358838224,1745488327368,-700.0,0.00027397,2]
[358838225,1745488327378,-700.0,0.00027397,2]
[358838226,1745488327402,-700.0,0.00027397,2]
[358838227,1745488327413,-499.26,0.00027397,2]
[358838228,1745488327423,-8219.01,0.00027397,2]
[358838229,1745488327433,-150.0,0.00027397,5]
[358838230,1745488327443,-504.86494383,0.00027397,5]
[358838231,1745488327453,-150.0,0.00027397,5]
[358838232,1745488327463,-507.0,0.000274,2]
[358838233,1745488327473,-971.3,0.00027425,30]
[358838234,1745488327484,-152.0,0.00027487,6]
[358838235,1745488327496,-193.8235621,0.000275,2]
[358838236,1745488327508,-164.203445,0.0002755,4]
[358838237,1745488327519,-775.079412,0.0002755,4]
[358838238,1745488327530,-162.96537,0.0002755,4]
[358838239,1745488327541,-157.453687,0.0002755,4]
[358838240,1745488327551,-152.909533,0.0002755,4]
[358838241,1745488327561,-424.651617,0.0002755,4]
[358838242,1745488327571,-250.779155,0.0002755,4]
[358838243,1745488327581,-179.983406,0.0002755,4]
[358838244,1745488327593,-151.0,0.00027945,5]
[358838245,1745488327603,-276.8,0.00028,2]
[358838246,1745488327613,-24571.2599682,0.00028,2]
[358838247,1745488327624,-491.42519937,0.00028,2]
[358838248,1745488327634,-878.45626648,0.00028,2]
[358838249,1745488327645,-152.0,0.00028026,7]
[358838250,1745488327654,-257.91778498,0.00028202,2]
[358838251,1745488327666,-1170.65,0.00028312,2]
[358838252,1745488327677,-594.5447301,0.00028336,5]
[358838253,1745488327687,-208.28,0.00028442,2]
[358838254,1745488327698,-152.0,0.00028493,5]
[358838255,1745488327707,-152.0,0.00028566,8]
[358838256,1745488327717,-4609.0,0.00028658,2]
[358838257,1745488327727,-13524.0,0.00028759,5]
[358838258,1745488327736,-190.45,0.00028767,2]
[358838259,1745488327746,-631.35,0.00028767,2]
[358838260,1745488327756,-8219.01,0.00028767,2]
[358838261,1745488327765,-500.0,0.00028999,2]
[358838262,1745488327776,-500.0,0.00028999,2]
[358838263,1745488327786,-500.0,0.00028999,2]
[358838264,1745488327796,-75039.92112642,0.00029,2]
[358838265,1745488327806,-54846.33963484,0.00029,2]
[358838266,1745488327817,-1067.17083587,0.00029,2]
[358838267,1745488327835,-270.65,0.00029,2]
[358838268,1745488327845,-260.06297073,0.00029,2]
[358838269,1745488327855,-328.24905,0.00029,7]
[358838270,1745488327865,-151.0,0.00029,7]
[358838271,1745488327875,-151.0,0.00029,7]
[358838272,1745488327885,-151.0,0.00029,7]
[358838273,1745488327895,-151.0,0.00029,7]
[358838274,1745488327905,-151.0,0.00029,7]
[358838275,1745488327914,-155.39769,0.00029,7]
[358838276,1745488327924,-173.45141,0.00029,7]
[358838277,1745488327934,-173.45141,0.00029,7]
[358838278,1745488327944,-151.0,0.00029,7]
[358838279,1745488327954,-151.0,0.00029,7]
[358838280,1745488327964,-151.0,0.00029,7]
[358838281,1745488327975,-151.0,0.00029,7]
[358838282,1745488327986,-454.507763,0.00029,7]
[358838283,1745488327996,-454.507763,0.00029,7]
[358838284,1745488328006,-158.070686,0.00029,7]
[358838285,1745488328016,-158.070686,0.00029,7]
[358838286,1745488328026,-281.432388,0.00029,7]
[358838287,1745488328036,-170.393414,0.00029,7]
[358838288,1745488328046,-281.432388,0.00029,7]
[358838289,1745488328055,-151.0,0.00029,7]
[358838290,1745488328065,-550.0,0.00029,2]
[358838291,1745488328075,-197.01281,0.00029,7]
[358838292,1745488328086,-197.01281,0.00029,7]
[358838293,1745488328096,-151.0,0.00029,7]
[358838294,1745488328107,-151.0,0.00029,7]
[358838295,1745488328116,-151.0,0.00029,7]
[358838296,1745488328126,-215.676443,0.00029,7]
[358838297,1745488328136,-151.0,0.00029,7]
[358838298,1745488328146,-215.676443,0.00029,7]
[358838299,1745488328157,-151.0,0.00029,7]
[358838300,1745488328167,-151.0,0.00029,7]
[358838301,1745488328177,-2568.593347,0.00029,7]
[358838302,1745488328187,-2568.593347,0.00029,7]
[358838303,1745488328197,-291.593508,0.00029,7]
[358838304,1745488328207,-291.593508,0.00029,7]
[358838305,1745488328217,-151.0,0.00029,7]
[358838306,1745488328227,-218.283611,0.00029,7]
[358838307,1745488328239,-218.283611,0.00029,7]
[358838308,1745488328249,-160.752394,0.00029,7]
[358838309,1745488328259,-160.752394,0.00029,7]
[358838310,1745488328274,-918.0,0.00029,2]
[358838311,1745488328285,-1335.0,0.00029,2]
[358838312,1745488328294,-1285.0,0.00029,2]
[358838313,1745488328304,-796.0,0.00029,2]
[358838314,1745488328315,-548.0,0.00029,2]
[358838315,1745488328325,-1445.0,0.00029,2]
[358838316,1745488328335,-578.0,0.00029,2]
[358838317,1745488328347,-2060.0,0.00029,2]
[358838318,1745488328357,-910.0,0.00029,2]
[358838319,1745488328371,-3986.0,0.00029,2]
[358838320,1745488328381,-825.062,0.00029,2]
[358838321,1745488328391,-152.0,0.00029,2]
[358838322,1745488328401,-152.0,0.00029,2]
[358838323,1745488328411,-871.0,0.00029,2]
[358838324,1745488328421,-188.0,0.00029007,7]
[358838325,1745488328431,-153.0,0.00029041,5]
[358838326,1745488328443,-152.0,0.00029105,9]
[358838327,1745488328453,-450.18,0.00029156,2]
[358838328,1745488328463,-450.18,0.00029156,2]
[358838329,1745488328473,-162.13,0.00029179,2]
[358838330,1745488328483,-267.46074303,0.00029571,2]
[358838331,1745488328493,-154.0,0.00029589,5]
[358838332,1745488328504,-152.0,0.00029645,10]
[358838333,1745488328514,-151.0,0.00029879,7]
[358838334,1745488328524,-275.927413,0.00029879,7]
[358838335,1745488328534,-500.0,0.00029899,2]
[358838336,1745488328544,-500.0,0.00029899,2]
[358838337,1745488328554,-75749.498469,0.000299,2]
[358838338,1745488328564,-13669.51973251,0.0002991,2]
[358838339,1745488328574,-450.18,0.00029978,2]
[358838340,1745488328584,-229.00888454,0.0002999,2]
[358838341,1745488328594,-150.0,0.00029999,2]
[358838342,1745488328604,-1320.95623379,0.0003,20]
[358838343,1745488328614,-5379.93769628,0.0003,10]
[358838344,1745488328624,-194.2,0.0003,2]
[358838345,1745488328634,-160.70290143,0.0003,2]
[358838346,1745488328643,-206343.59743492,0.0003,2]
[358838347,1745488328653,-389.59753417,0.0003,2]
[358838348,1745488328664,-2000.0,0.0003,14]
[358838349,1745488328674,-982.72603345,0.0003,2]
[358838350,1745488328683,-499.71,0.0003,7]
[358838351,1745488328693,-157.619707,0.0003,7]
[358838352,1745488328703,-157.619707,0.0003,7]
[358838353,1745488328714,-532.94789685,0.0003,3]
[358838354,1745488328728,-151.0,0.0003,7]
[358838355,1745488328738,-151.0,0.0003,7]
[358838356,1745488328748,-151.0,0.0003,7]
[358838357,1745488328758,-427.965258,0.0003,7]
[358838358,1745488328767,-427.965258,0.0003,7]
[358838359,1745488328778,-1002.94300575,0.0003,2]
[358838360,1745488328788,-476.903133,0.0003,7]
[358838361,1745488328798,-476.903133,0.0003,7]
[358838362,1745488328807,-236.765913,0.0003,7]
[358838363,1745488328817,-236.765913,0.0003,7]
[358838364,1745488328827,-151.0,0.0003,7]
[358838365,1745488328838,-151.0,0.0003,7]
[358838366,1745488328848,-236.460482,0.0003,7]
[358838367,1745488328858,-480.552712,0.0003,7]
[358838368,1745488328868,-480.552712,0.0003,7]
[358838369,1745488328877,-236.460482,0.0003,7]
[358838370,1745488328888,-151.0,0.0003,7]
[358838371,1745488328898,-151.0,0.0003,7]
[358838372,1745488328907,-529.535086,0.0003,7]
[358838373,1745488328917,-529.535086,0.0003,7]
[358838374,1745488328928,-151.0,0.0003,7]
[358838375,1745488328938,-1321.286397,0.0003,7]
[358838376,1745488328948,-1321.286397,0.0003,7]
[358838377,1745488328959,-347.911459,0.0003,7]
[358838378,1745488328968,-347.911459,0.0003,7]
[358838379,1745488328978,-1234.035919,0.0003,7]
[358838380,1745488328988,-1234.035919,0.0003,7]
[358838381,1745488328997,-188.448022,0.0003,7]
[358838382,1745488329007,-188.448022,0.0003,7]
[358838383,1745488329017,-194.637015,0.0003,7]
[358838384,1745488329027,-194.637015,0.0003,7]
[358838385,1745488329038,-152.222246,0.0003,7]
[358838386,1745488329047,-251.334761,0.0003,7]
[358838387,1745488329058,-251.334761,0.0003,7]
[358838388,1745488329067,-390.516107,0.0003,7]
[358838389,1745488329077,-390.516107,0.0003,7]
[358838390,1745488329089,-213.0,0.0003,2]
[358838391,1745488329100,-12039.16,0.0003011,2]
[358838392,1745488329110,-190.45,0.00030136,2]
[358838393,1745488329120,-610.0,0.00030137,2]
[358838394,1745488329130,-8219.01,0.00030137,2]
[358838395,1745488329141,-160.0,0.00030137,5]
[358838396,1745488329151,-155.0,0.00030137,5]
[358838397,1745488329161,-152.0,0.00030184,11]
[358838398,1745488329171,-1170.65,0.00030576,2]
[358838399,1745488329181,-156.0,0.00030685,5]
[358838400,1745488329191,-152.0,0.00030723,12]
[358838401,1745488329201,-277.35679052,0.0003094,2]
[358838402,1745488329212,-20723.627515,0.00031,3]
[358838403,1745488329222,-600.0,0.00031,2]
[358838404,1745488329232,-610.523572,0.00031,7]
[358838405,1745488329242,-610.523572,0.00031,7]
[358838406,1745488329254,-151.0,0.00031,7]
[358838407,1745488329264,-151.0,0.00031,7]
[358838408,1745488329274,-151.0,0.00031,7]
[358838409,1745488329284,-151.0,0.00031,7]
[358838410,1745488329294,-151.0,0.00031,7]
[358838411,1745488329304,-151.0,0.00031,7]
[358838412,1745488329314,-151.0,0.00031,7]
[358838413,1745488329325,-301.155705,0.00031,7]
[358838414,1745488329335,-151.0,0.00031,7]
[358838415,1745488329347,-208.604727,0.00031,7]
[358838416,1745488329356,-251.442534,0.00031,7]
[358838417,1745488329369,-251.442534,0.00031,7]
[358838418,1745488329379,-151.0,0.00031,7]
[358838419,1745488329389,-151.0,0.00031,7]
[358838420,1745488329400,-232.039799,0.00031,7]
[358838421,1745488329411,-232.039799,0.00031,7]
[358838422,1745488329422,-151.0,0.00031,7]
[358838423,1745488329431,-229.399402,0.00031,7]
[358838424,1745488329441,-157.0,0.00031233,5]
[358838425,1745488329452,-152.0,0.00031263,13]
[358838426,1745488329462,-546.99,0.00031328,2]
[358838427,1745488329472,-454.83,0.00031328,2]
[358838428,1745488329482,-454.83,0.00031328,2]
[358838429,1745488329492,-461.35,0.00031328,2]
[358838430,1745488329502,-6453.0,0.00031355,3]
[358838431,1745488329512,-190.45,0.00031506,2]
[358838432,1745488329522,-8219.01,0.00031507,2]
[358838433,1745488329532,-284.48545827,0.00031781,5]
[358838434,1745488329542,-152.0,0.00031802,14]
[358838435,1745488329552,-3196.96066302,0.00032,5]
[358838436,1745488329561,-1532.23628342,0.00032,2]
[358838437,1745488329570,-151.0,0.00032,7]
[358838438,1745488329579,-179.577965,0.00032,7]
[358838439,1745488329588,-918.0,0.00032,2]
[358838440,1745488329599,-1335.0,0.00032,2]
[358838441,1745488329608,-1167.103,0.00032,2]
[358838442,1745488329616,-796.0,0.00032,2]
[358838443,1745488329626,-548.0,0.00032,2]
[358838444,1745488329635,-1445.0,0.00032,2]
[358838445,1745488329644,-578.0,0.00032,2]
[358838446,1745488329654,-2060.0,0.00032,2]
[358838447,1745488329663,-910.0,0.00032,2]
[358838448,1745488329672,-3986.0,0.00032,2]
[358838449,1745488329682,-152.0,0.00032,2]
[358838450,1745488329693,-871.0,0.00032,2]
[358838451,1745488329703,-631.35,0.00032192,2]
[358838452,1745488329713,-151.0,0.000323,7]
[358838453,1745488329723,-287.61899177,0.00032309,2]
[358838454,1745488329733,-152.0,0.00032342,15]
[358838455,1745488329743,-159.57716,0.000325,7]
[358838456,1745488329754,-151.0,0.000326,7]
[358838457,1745488329764,-4653.5514514,0.000328,2]
[358838458,1745488329774,-328.24905,0.000328,7]
[358838459,1745488329783,-1170.65,0.0003284,2]
[358838460,1745488329793,-372.05638349,0.00032876,2]
[358838461,1745488329804,-387.0853405,0.00032876,2]
[358838462,1745488329815,-373.39443134,0.00032876,2]
[358838463,1745488329827,-410.03183959,0.00032876,2]
[358838464,1745488329837,-425.25330582,0.00032876,2]
[358838465,1745488329847,-449.89067544,0.00032876,2]
[358838466,1745488329857,-500.0,0.00032876,2]
[358838467,1745488329867,-506.61023009,0.00032876,2]
[358838468,1745488329878,-377.94742004,0.00032876,2]
[358838469,1745488329888,-260.35916683,0.00032876,2]
[358838470,1745488329898,-431.40438433,0.00032876,2]
[358838471,1745488329910,-190.45,0.00032876,2]
[358838472,1745488329922,-375.09336563,0.00032876,2]
[358838473,1745488329932,-290.00377804,0.00032876,2]
[358838474,1745488329944,-227.91886492,0.00032876,2]
[358838475,1745488329954,-2000.0,0.00032876,2]
[358838476,1745488329969,-2000.0,0.00032876,2]
[358838477,1745488329991,-2000.0,0.00032876,2]
[358838478,1745488330008,-2000.0,0.00032876,2]
[358838479,1745488330030,-2000.0,0.00032876,2]
[358838480,1745488330052,-2000.0,0.00032876,2]
[358838481,1745488330074,-2000.0,0.00032876,2]
[358838482,1745488330096,-2000.0,0.00032876,2]
[358838483,1745488330116,-2000.0,0.00032876,2]
[358838484,1745488330138,-2000.0,0.00032876,2]
[358838485,1745488330161,-2000.0,0.00032876,2]
[358838486,1745488330184,-2000.0,0.00032876,2]
[358838487,1745488330207,-2000.0,0.00032876,2]
[358838488,1745488330229,-2000.0,0.00032876,2]
[358838489,1745488330251,-2000.0,0.00032876,2]
[358838490,1745488330274,-2000.0,0.00032876,2]
[358838491,1745488330286,-1682.06419382,0.00032876,2]
[358838492,1745488330296,-181.10945425,0.00032876,2]
[358838493,1745488330306,-1947.54803768,0.00032876,2]
[358838494,1745488330317,-1947.54803768,0.00032876,2]
[358838495,1745488330328,-1947.54803768,0.00032876,2]
[358838496,1745488330338,-1947.54803768,0.00032876,2]
[358838497,1745488330348,-1947.54803768,0.00032876,2]
[358838498,1745488330358,-1947.54803768,0.00032876,2]
[358838499,1745488330371,-1947.54803768,0.00032876,2]
[358838500,1745488330382,-1947.54803768,0.00032876,2]
[358838501,1745488330393,-1947.54803768,0.00032876,2]
[358838502,1745488330403,-1947.54803768,0.00032876,2]
[358838503,1745488330414,-221.13578017,0.00032876,2]
[358838504,1745488330424,-500.0,0.00032876,2]
[358838505,1745488330434,-331.56,0.00032877,2]
[358838506,1745488330445,-150.0,0.00032877,2]
[358838507,1745488330456,-151.0,0.00032877,7]
[358838508,1745488330466,-151.0,0.00032877,7]
[358838509,1745488330476,-151.0,0.00032877,7]
[358838510,1745488330486,-155.088537,0.00032877,7]
[358838511,1745488330497,-8219.01,0.00032877,2]
[358838512,1745488330507,-150.0,0.00032877,5]
[358838513,1745488330517,-267.38103397,0.00032877,5]
[358838514,1745488330528,-152.0,0.00032881,16]
[358838515,1745488330541,-507.93014161,0.000329,2]
[358838516,1745488330551,-4557.32775913,0.00033,2]
[358838517,1745488330561,-25127.17473418,0.00033,2]
[358838518,1745488330572,-650.0,0.00033,2]
[358838519,1745488330583,-213.0,0.00033,2]
[358838520,1745488330594,-216.62020948,0.000331,2]
[358838521,1745488330605,-1650.61758045,0.00033106,2]
[358838522,1745488330616,-200.0,0.00033151,2]
[358838523,1745488330627,-743.0,0.000334,2]
[358838524,1745488330638,-152.0,0.00033421,17]
[358838525,1745488330649,-1169.23130226,0.000335,2]
[358838526,1745488330660,-6731.21,0.000335,7]
[358838527,1745488330671,-298.26089446,0.00033678,2]
[358838528,1745488330683,-150.0,0.00033742,2]
[358838529,1745488330695,-152.0,0.0003396,18]
[358838530,1745488330706,-4003.47403547,0.00034,2]
[358838531,1745488330717,-1000.0,0.00034,2]
[358838532,1745488330728,-762.0,0.00034,2]
[358838533,1745488330738,-236.0,0.00034,2]
[358838534,1745488330750,-218.283611,0.00034054,7]
[358838535,1745488330762,-218.283611,0.00034054,7]
[358838536,1745488330773,-150.0,0.00034114,30]
[358838537,1745488330784,-232.56746965,0.00034114,30]
[358838538,1745488330795,-151.0,0.00034157,7]
[358838539,1745488330806,-206.207625,0.00034157,7]
[358838540,1745488330817,-151.0,0.00034157,7]
[358838541,1745488330828,-151.0,0.00034157,7]
[358838542,1745488330840,-291.593508,0.00034157,7]
[358838543,1745488330850,-291.593508,0.00034157,7]
[358838544,1745488330861,-190.45,0.00034246,2]
[358838545,1745488330873,-5545.0,0.00034306,3]
[358838546,1745488330884,-152.0,0.000345,19]
[358838547,1745488330894,-150.0,0.00034548,10]
[358838548,1745488330905,-150.0,0.00034607,2]
[358838549,1745488330916,-12050.78024972,0.0003489,14]
[358838550,1745488330927,-160.752394,0.0003489,7]
[358838551,1745488330939,-160.752394,0.0003489,7]
[358838552,1745488330949,-6029.78467888,0.00035,2]
[358838553,1745488330960,-3900.0,0.00035,7]
[358838554,1745488330971,-500.0,0.00035,2]
[358838555,1745488330982,-500.0,0.00035,2]
[358838556,1745488330994,-1196.13370253,0.00035,2]
[358838557,1745488331005,-227.72919541,0.00035,2]
[358838558,1745488331016,-173.45141,0.00035,7]
[358838559,1745488331027,-173.45141,0.00035,7]
[358838560,1745488331039,-151.0,0.00035,7]
[358838561,1745488331050,-159.258074,0.00035,7]
[358838562,1745488331061,-151.0,0.00035,7]
[358838563,1745488331072,-151.0,0.00035,7]
[358838564,1745488331083,-454.507763,0.00035,7]
[358838565,1745488331095,-454.507763,0.00035,7]
[358838566,1745488331106,-158.070686,0.00035,7]
[358838567,1745488331117,-158.070686,0.00035,7]
[358838568,1745488331128,-281.432388,0.00035,7]
[358838569,1745488331139,-281.432388,0.00035,7]
[358838570,1745488331150,-279.91936,0.00035,7]
[358838571,1745488331161,-700.0,0.00035,2]
[358838572,1745488331171,-197.01281,0.00035,7]
[358838573,1745488331182,-197.01281,0.00035,7]
[358838574,1745488331193,-151.0,0.00035,7]
[358838575,1745488331204,-215.676443,0.00035,7]
[358838576,1745488331216,-151.0,0.00035,7]
[358838577,1745488331227,-215.676443,0.00035,7]
[358838578,1745488331238,-2568.593347,0.00035,7]
[358838579,1745488331248,-2568.593347,0.00035,7]
[358838580,1745488331259,-151.0,0.00035,7]
[358838581,1745488331269,-918.0,0.00035,2]
[358838582,1745488331280,-362.194,0.00035,2]
[358838583,1745488331291,-796.0,0.00035,2]
[358838584,1745488331301,-548.0,0.00035,2]
[358838585,1745488331313,-1445.0,0.00035,2]
[358838586,1745488331323,-578.0,0.00035,2]
[358838587,1745488331334,-2060.0,0.00035,2]
[358838588,1745488331346,-910.0,0.00035,2]
[358838589,1745488331357,-2316.146,0.00035,2]
[358838590,1745488331369,-152.0,0.00035,2]
[358838591,1745488331382,-731.082,0.00035,2]
[358838592,1745488331392,-900.0,0.00035,3]
[358838593,1745488331403,-5600.0,0.00035,3]
[358838594,1745488331415,-50000.0,0.00035,4]
[358838595,1745488331426,-152.0,0.00035039,20]
[358838596,1745488331436,-309.29654756,0.00035047,2]
[358838597,1745488331447,-1171.23,0.00035068,2]
[358838598,1745488331458,-1170.65,0.00035103,2]
[358838599,1745488331469,-150.0,0.00035472,2]
[358838600,1745488331479,-152.0,0.00035579,21]
[358838601,1745488331490,-190.45,0.00035616,2]
[358838602,1745488331500,-631.35,0.00035616,2]
[358838603,1745488331511,-450.34,0.00035712,2]
[358838604,1745488331522,-450.34,0.00035712,2]
[358838605,1745488331532,-450.34,0.00035712,2]
[358838606,1745488331543,-450.34,0.00035712,2]
[358838607,1745488331553,-450.34,0.00035712,2]
[358838608,1745488331563,-450.34,0.00035712,2]
[358838609,1745488331573,-450.34,0.00035712,2]
[358838610,1745488331584,-351.08,0.00035712,2]
[358838611,1745488331596,-450.34,0.00035712,2]
[358838612,1745488331607,-450.34,0.00035712,2]
[358838613,1745488331617,-450.34,0.00035712,2]
[358838614,1745488331627,-879.68,0.00035712,2]
[358838615,1745488331637,-150.0,0.00035929,3]
[358838616,1745488331648,-214093.45259114,0.0003593,7]
[358838617,1745488331659,-157.619707,0.0003593,7]
[358838618,1745488331669,-157.619707,0.0003593,7]
[358838619,1745488331678,-151.0,0.0003593,7]
[358838620,1745488331689,-151.0,0.0003593,7]
[358838621,1745488331698,-151.0,0.0003593,7]
[358838622,1745488331709,-5865.77195121,0.0003593,7]
[358838623,1745488331719,-151.0,0.0003593,7]
[358838624,1745488331729,-6140.86,0.00036,2]
[358838625,1745488331739,-645.89970638,0.00036,2]
[358838626,1745488331749,-500.0,0.00036,5]
[358838627,1745488331760,-213.0,0.00036,2]
[358838628,1745488331771,-152.0,0.00036118,22]
[358838629,1745488331781,-971.3,0.00036139,30]
[358838630,1745488331791,-150.0,0.00036337,2]
[358838631,1745488331802,-320.74051982,0.00036416,2]
[358838632,1745488331811,-152.0,0.00036658,23]
[358838633,1745488331821,-245.98190344,0.00036658,5]
[358838634,1745488331831,-343.9,0.000367,51]
[358838635,1745488331841,-220.199828,0.00036721,4]
[358838636,1745488331852,-190.45,0.00036986,2]
[358838637,1745488331861,-300.0,0.00037,7]
[358838638,1745488331871,-969.91,0.00037,2]
[358838639,1745488331881,-750.0,0.00037,2]
[358838640,1745488331892,-1283.28822265,0.00037132,5]
[358838641,1745488331902,-1500.0,0.00037132,5]
[358838642,1745488331912,-1500.0,0.00037178,5]
[358838643,1745488331922,-150.0,0.00037203,2]
[358838644,1745488331932,-1500.0,0.00037241,5]
[358838645,1745488331943,-1170.65,0.00037367,2]
[358838646,1745488331953,-2638.27082916,0.0003749,2]
[358838647,1745488331963,-4204.43935602,0.0003759,2]
[358838648,1745488331973,-200.0,0.000377,54]
[358838649,1745488331983,-332.60791905,0.00037785,2]
[358838650,1745488331993,-168.35043946,0.000378,2]
[358838651,1745488332004,-172.14,0.00037808,2]
[358838652,1745488332014,-172.14,0.00037808,2]
[358838653,1745488332024,-172.14,0.00037808,2]
[358838654,1745488332034,-172.15742589,0.00037808,2]
[358838655,1745488332043,-200.0,0.00037808,2]
[358838656,1745488332053,-175.0,0.00037808,2]
[358838657,1745488332063,-479.0,0.00037808,2]
[358838658,1745488332073,-5000.0,0.00038,7]
[358838659,1745488332083,-6131.37934965,0.00038,10]
[358838660,1745488332096,-918.0,0.00038,2]
[358838661,1745488332107,-796.0,0.00038,2]
[358838662,1745488332117,-548.0,0.00038,2]
[358838663,1745488332128,-1445.0,0.00038,2]
[358838664,1745488332139,-578.0,0.00038,2]
[358838665,1745488332150,-2060.0,0.00038,2]
[358838666,1745488332162,-910.0,0.00038,2]
[358838667,1745488332174,-152.0,0.00038,2]
[358838668,1745488332185,-150.0,0.00038068,2]
[358838669,1745488332195,-200.0,0.00038186,2]
[358838670,1745488332206,-500.0,0.00038247,2]
[358838671,1745488332217,-190.45,0.00038356,2]
[358838672,1745488332228,-150.23279255,0.00038356,5]
[358838673,1745488332239,-11728.96,0.000384,14]
[358838674,1745488332249,-50267.92,0.000384,14]
[358838675,1745488332259,-36060.0,0.00038463,7]
[358838676,1745488332270,-610.523572,0.00038463,14]
[358838677,1745488332281,-610.523572,0.00038463,14]
[358838678,1745488332292,-151.0,0.00038463,14]
[358838679,1745488332302,-151.0,0.00038463,14]
[358838680,1745488332313,-151.0,0.00038463,14]
[358838681,1745488332323,-154.100858,0.00038463,14]
[358838682,1745488332334,-151.0,0.00038463,14]
[358838683,1745488332345,-151.0,0.00038463,14]
[358838684,1745488332355,-151.0,0.00038463,14]
[358838685,1745488332366,-151.0,0.00038463,14]
[358838686,1745488332377,-251.442534,0.00038463,14]
[358838687,1745488332388,-251.442534,0.00038463,14]
[358838688,1745488332398,-151.0,0.00038463,14]
[358838689,1745488332408,-151.0,0.00038463,14]
[358838690,1745488332419,-232.039799,0.00038463,14]
[358838691,1745488332430,-232.039799,0.00038463,14]
[358838692,1745488332441,-151.0,0.00038463,14]
[358838693,1745488332452,-200.0,0.000387,57]
[358838694,1745488332463,-10417.04257975,0.00038788,2]
[358838695,1745488332473,-151.0,0.00038788,14]
[358838696,1745488332483,-500.0,0.00038801,5]
[358838697,1745488332494,-328.24905,0.000389,14]
[358838698,1745488332504,-151.0,0.000389,14]
[358838699,1745488332514,-151.0,0.000389,14]
[358838700,1745488332524,-11728.96,0.000389,14]
[358838701,1745488332535,-50267.92,0.000389,14]
[358838702,1745488332545,-150.0,0.00038933,2]
[358838703,1745488332555,-799.28,0.00038935,2]
[358838704,1745488332565,-799.28,0.00038935,2]
[358838705,1745488332576,-799.28,0.00038935,2]
[358838706,1745488332586,-1020.0,0.00039,4]